bitfinex/quotes_ETHUSD_20230904
["timestamp","ask_amount","ask_price","bid_price","bid_amount"]
[1693861792269,1.573,1627.5,1627.4,0.74276757]
[1693861792459,1.573,1627.5,1627.4,1.70954149]
[1693861792654,1.573,1627.5,1627.4,0.74276757]
[1693861793180,4.1343,1627.6,1627.4,1.70954149]
[1693861793375,4.76326,1627.6,1627.4,1.70954149]
[1693861794042,4.76326,1627.6,1627.5,0.64276757]
[1693861795168,4.76326,1627.6,1627.4,1.70954149]
[1693861797179,6.91026,1627.6,1627.4,1.70954149]
[1693861802549,0.29085096,1627.5,1627.4,1.70954149]
[1693861803349,0.29085096,1627.5,1627.4,0.74276757]
[1693861805493,2.52106606,1627.5,1627.4,0.74276757]
[1693861806183,4.70006606,1627.5,1627.4,0.74276757]
[1693861806551,2.52106606,1627.5,1627.4,0.74276757]
[1693861806882,1.86385096,1627.5,1627.4,0.74276757]
[1693861808987,0.29085096,1627.5,1627.4,0.74276757]
[1693861814398,18.79264522,1627.5,1627.1,0.6491015]
[1693861814561,3.06701426,1627.4,1627.1,0.97152541]
[1693861814895,19.50594285,1627.3,1627.0,0.64477793]
[1693861815096,19.50594285,1627.3,1626.9,0.42242391]
[1693861815097,18.4377,1627.1,1626.9,0.1]
[1693861815398,12.2918,1627.1,1626.9,0.1]
[1693861815697,2.05093412,1626.9,1626.8,0.1]
[1693861815897,3.62393412,1626.9,1626.8,0.1]
[1693861816270,9.77058412,1626.9,1626.8,0.1]
[1693861816469,4.75829253,1626.9,1626.8,0.1]
[1693861816670,3.62393412,1626.9,1626.8,0.1]
[1693861817583,3.91569483,1626.9,1626.8,0.1]
[1693861817790,3.91569483,1626.9,1626.8,0.05]
[1693861818367,2.34269483,1626.9,1626.8,0.05]
[1693861818963,2.34269483,1626.9,1626.8,3.11701426]
[1693861819568,0.29176071,1626.9,1626.8,3.11701426]
[1693861819809,0.29176071,1626.9,1626.8,0.05]
[1693861820014,7.71965,1626.9,1626.8,0.05]
[1693861820170,9.494893,1626.9,1626.8,0.05]
[1693861820804,2.00119852,1626.7,1626.6,0.1]
[1693861823620,2.00119852,1626.7,1626.6,3.16701426]
[1693861823914,1.573,1626.8,1626.6,3.16701426]
[1693861828721,12.18058194,1627.0,1626.6,3.16701426]
[1693861828890,14.01323513,1627.0,1626.6,3.16701426]
[1693861830522,7.86695513,1627.0,1626.6,3.16701426]
[1693861831483,14.01325513,1627.0,1626.6,3.16701426]
[1693861832820,0.57718334,1626.9,1626.6,3.16701426]
[1693861833843,0.57718334,1626.9,1626.6,0.1]
[1693861834021,1.573,1626.8,1626.6,0.1]
[1693861834589,7.72018,1626.8,1626.6,0.1]
[1693861834826,3.72419852,1626.7,1626.6,0.1]
[1693861835222,16.01901852,1626.7,1626.6,0.1]
[1693861835533,9.87160852,1626.7,1626.6,0.1]
[1693861835699,12.30829437,1626.7,1626.6,0.1]
[1693861835898,18.45570437,1626.7,1626.6,0.1]
[1693861836319,18.70165537,1626.7,1626.6,0.1]
[1693861840137,6.40683537,1626.7,1626.6,0.1]
[1693861842443,12.55424537,1626.7,1626.6,0.1]
[1693861847732,13.09553185,1626.7,1626.6,0.1]
[1693861848048,25.39035185,1626.7,1626.6,0.1]
[1693861848425,19.24294185,1626.7,1626.6,0.1]
[1693861848639,23.23915333,1626.7,1626.6,0.1]
[1693861848844,1.95146299,1626.5,1626.4,0.1]
[1693861849255,2.76141129,1626.5,1626.4,0.1]
[1693861849457,8.90958129,1626.5,1626.4,0.1]
[1693861849966,10.48258129,1626.5,1626.4,0.1]
[1693861850467,1.95172753,1626.3,1626.2,0.1]
[1693861851059,15.82256753,1626.3,1626.2,0.1]
[1693861851258,17.52851818,1626.3,1626.2,0.1]
[1693861851746,11.37959818,1626.3,1626.2,0.1]
[1693861851942,5.23067818,1626.3,1626.2,0.1]
[1693861852943,3.52472753,1626.3,1626.2,0.1]
[1693861853974,1.95172753,1626.3,1626.2,0.1]
[1693861862787,2.54907177,1626.3,1626.2,0.1]
[1693861864693,4.12207177,1626.3,1626.2,0.1]
[1693861864857,22.56883177,1626.3,1626.2,0.1]
[1693861865055,25.68535795,1626.3,1626.2,0.1]
[1693861865365,23.73363042,1626.3,1626.2,0.1]
[1693861865786,1.9519959,1626.1,1626.0,0.1]
[1693861866086,1.573,1626.1,1626.0,0.1]
[1693861866255,1.95225679,1625.9,1625.8,0.1]
[1693861867755,2.91979347,1625.9,1625.8,0.1]
[1693861868000,2.91979347,1625.9,1625.8,0.05]
[1693861868163,1.95225679,1625.9,1625.8,0.05]
[1693861869287,21.97654679,1625.9,1625.8,0.05]
[1693861869863,3.52525679,1625.9,1625.8,0.05]
[1693861870197,2.00252153,1625.7,1625.4,31.09477793]
[1693861870386,2.00252153,1625.7,1625.4,0.64477793]
[1693861870562,2.00252153,1625.7,1625.4,0.59477793]
[1693861876279,2.00252153,1625.7,1625.3,3.96254558]
[1693861876580,2.00252153,1625.7,1625.4,3.06701426]
[1693861877594,0.60339107,1625.6,1625.4,3.06701426]
[1693861877771,2.00252153,1625.7,1625.4,3.06701426]
[1693861880591,2.00252153,1625.7,1625.4,3.70967764]
[1693861886473,2.00252153,1625.7,1625.4,4.67222322]
[1693861887578,2.00252153,1625.7,1625.4,3.70967764]
[1693861887774,2.00252153,1625.7,1625.4,1.60520896]
[1693861888987,2.00252153,1625.7,1625.5,0.64266338]
[1693861892512,0.60333793,1625.6,1625.5,0.64266338]
[1693861892715,0.60333793,1625.6,1625.5,3.70967764]
[1693861892889,2.00252153,1625.7,1625.5,6.67873775]
[1693861893090,10.3145,1626.4,1625.6,6.08255984]
[1693861893412,2.15199213,1626.1,1625.7,1.573]
[1693861893603,2.15199213,1626.1,1625.8,3.06701426]
[1693861894296,2.98212634,1626.1,1625.7,0.64345411]
[1693861894482,5.57492634,1626.1,1625.7,3.71046837]
[1693861896221,5.57492634,1626.1,1625.7,4.67301395]
[1693861896516,5.57492634,1626.1,1625.7,3.71046837]
[1693861897723,5.57492634,1626.1,1625.7,4.67301395]
[1693861899989,5.57492634,1626.1,1625.8,0.64345411]
[1693861902424,0.55749263,1626.0,1625.8,0.64345411]
[1693861902789,4.74479213,1626.1,1625.8,0.64345411]
[1693861907725,0.56075546,1626.0,1625.9,5.28346837]
[1693861908030,0.56075546,1626.0,1625.9,6.24601395]
[1693861908218,0.56075546,1626.0,1625.9,5.28346837]
[1693861908619,2.1517313,1626.3,1625.9,3.71046837]
[1693861908803,2.3928,1626.2,1625.9,0.64345411]
[1693861909996,2.84725313,1626.2,1625.9,0.64345411]
[1693861910210,2.3928,1626.2,1625.9,0.64345411]
[1693861911758,2.3928,1626.2,1625.9,1.60599969]
[1693861912315,2.1517313,1626.3,1626.0,3.06701426]
[1693861912516,2.1517313,1626.3,1626.1,1.12345411]
[1693861912748,0.64236275,1626.9,1626.2,5.28346837]
[1693861913055,2.15134966,1626.6,1626.4,1.573]
[1693861913220,2.15134966,1626.6,1626.4,4.64001426]
[1693861915830,13.89827367,1627.1,1626.4,4.64001426]
[1693861916056,2.15107008,1626.8,1626.4,4.64001426]
[1693861916621,2.1625,1626.7,1626.4,4.64001426]
[1693861917752,2.1625,1626.7,1626.5,3.06701426]
[1693861918341,2.15107008,1626.8,1626.5,4.64001426]
[1693861919970,2.2819,1626.9,1626.5,4.64001426]
[1693861920448,2.2819,1626.9,1626.5,3.06701426]
[1693861922764,0.50471302,1626.8,1626.5,3.06701426]
[1693861922923,0.50471302,1626.8,1626.5,3.57741583]
[1693861923124,2.2819,1626.9,1626.5,3.57741583]
[1693861931072,4.50890194,1627.0,1626.7,1.573]
[1693861931251,2.15080194,1627.0,1626.8,3.06701426]
[1693861931886,4.8025,1627.1,1626.8,3.06701426]
[1693861935774,4.8025,1627.1,1626.8,3.53101569]
[1693861936174,2.2187,1627.1,1626.8,5.10401569]
[1693861937458,2.2187,1627.1,1626.8,3.53101569]
[1693861937808,0.50522292,1627.0,1626.8,5.10401569]
[1693861938484,0.50522292,1627.0,1626.9,0.51040157]
[1693861938670,0.50522292,1627.0,1626.9,3.57741583]
[1693861944298,0.50522292,1627.0,1626.9,3.06701426]
[1693861944487,2.2187,1627.1,1626.9,3.06701426]
[1693861944684,2.2187,1627.1,1627.0,3.06701426]
[1693861952817,2.72394764,1627.1,1627.0,3.06701426]
[1693861966739,0.50524764,1627.1,1627.0,3.06701426]
[1693861967101,2.15040551,1627.3,1627.0,14.10355984]
[1693861967433,2.11416551,1627.3,1627.2,4.64001426]
[1693861967740,0.101,1627.4,1627.2,5.12001426]
[1693861968032,0.101,1627.4,1627.3,5.053]
[1693861968240,0.101,1627.4,1627.3,8.76376022]
[1693861968439,0.101,1627.4,1627.3,9.86534639]
[1693861969420,0.101,1627.4,1627.3,9.22160043]
[1693861970834,0.101,1627.4,1627.3,7.64860043]
[1693861971339,0.101,1627.4,1627.3,9.22160043]
[1693861972542,4.5762,1627.7,1627.3,9.22160043]
[1693861972741,4.5762,1627.7,1627.4,5.5621743]
[1693861972920,4.5762,1627.7,1627.5,0.48]
[1693861973123,4.5762,1627.7,1627.6,3.06701426]
[1693861973545,5.04653218,1627.7,1627.6,3.06701426]
[1693861977314,0.47033218,1627.7,1627.6,3.06701426]
[1693861977517,0.47033218,1627.7,1627.6,3.53101569]
[1693861977740,2.2644,1627.8,1627.6,3.53101569]
[1693861978129,0.42052732,1627.7,1627.6,3.53101569]
[1693861984321,2.2644,1627.8,1627.6,3.53101569]
[1693861984723,0.42052732,1627.7,1627.6,3.53101569]
[1693861995598,0.42052732,1627.7,1627.6,3.06701426]
[1693861995783,0.42052732,1627.7,1627.3,3.0]
[1693861996090,4.8134,1627.6,1627.4,3.06701426]
[1693861997620,0.42048978,1627.5,1627.4,3.06701426]
[1693861997889,0.42048978,1627.5,1627.4,6.06701426]
[1693861998095,0.42048978,1627.5,1627.4,6.97371569]
[1693862001582,4.8134,1627.6,1627.4,6.97371569]
[1693862001961,0.42048978,1627.5,1627.4,6.97371569]
[1693862002269,4.8134,1627.6,1627.4,6.97371569]
[1693862002978,0.42048978,1627.5,1627.4,6.97371569]
[1693862003548,4.8134,1627.6,1627.4,6.97371569]
[1693862003966,0.42048978,1627.5,1627.4,6.97371569]
[1693862004374,4.8134,1627.6,1627.4,6.97371569]
[1693862004976,0.42048978,1627.5,1627.4,6.97371569]
[1693862005402,4.8134,1627.6,1627.4,9.02671569]
[1693862005607,4.8134,1627.6,1627.5,0.90267157]
[1693862005774,4.8134,1627.6,1627.5,3.96968583]
[1693862007713,0.101,1627.8,1627.5,3.96968583]
[1693862007935,0.101,1627.8,1627.6,6.54701426]
[1693862008241,0.42049369,1627.7,1627.6,6.54701426]
[1693862008380,0.42049369,1627.7,1627.6,7.51365744]
[1693862008729,0.101,1627.8,1627.6,7.51365744]
[1693862009435,0.40782863,1627.7,1627.6,7.51365744]
[1693862010091,0.101,1627.8,1627.6,7.51365744]
[1693862011426,0.101,1627.8,1627.6,8.1574034]
[1693862011607,0.101,1627.8,1627.7,0.81574034]
[1693862011803,0.101,1627.8,1627.7,3.8827546]
[1693862011999,0.50886891,1627.8,1627.7,3.8827546]
[1693862012406,0.101,1627.8,1627.7,3.8827546]
[1693862014487,0.49688535,1627.8,1627.7,3.8827546]
[1693862020528,0.101,1627.8,1627.7,3.8827546]
[1693862022318,0.101,1627.8,1627.7,4.52650056]
[1693862022833,0.49666951,1627.8,1627.7,3.8827546]
[1693862025432,0.49666951,1627.8,1627.7,3.06701426]
[1693862049153,0.49666951,1627.8,1627.7,3.71076022]
[1693862051566,0.49666951,1627.8,1627.7,0.64374596]
[1693862051763,12.3756188,1627.8,1627.3,0.64512015]
[1693862051928,0.64298838,1627.6,1627.2,0.68734665]
[1693862052131,19.93565577,1627.5,1626.9,1.29048486]
[1693862052350,3.79202765,1627.4,1627.0,0.64529122]
[1693862052671,1.71065331,1627.3,1626.9,1.61322746]
[1693862052881,7.75273095,1627.3,1627.0,6.07351437]
[1693862053086,3.72366978,1627.1,1627.0,6.07351437]
[1693862053295,3.72366978,1627.1,1626.8,0.64529122]
[1693862053612,3.72366978,1627.1,1626.7,2.2585179]
[1693862053613,1.573,1626.9,1626.7,0.64529122]
[1693862053751,13.8663,1626.9,1626.4,0.64529122]
[1693862053936,1.573,1626.5,1626.2,1.61322746]
[1693862054568,5.97963075,1626.6,1626.2,0.64529122]
[1693862054968,1.573,1626.4,1626.1,1.61322746]
[1693862055190,1.573,1626.5,1626.2,0.64529122]
[1693862055389,2.17096308,1626.5,1626.2,0.64529122]
[1693862055639,2.17096308,1626.5,1626.0,0.64529122]
[1693862056552,2.17096308,1626.5,1625.9,0.64529122]
[1693862056744,1.573,1626.5,1625.9,0.64529122]
[1693862056944,4.40663075,1626.6,1626.1,3.18622746]
[1693862057258,2.15133075,1626.6,1626.2,5.21829122]
[1693862057441,1.9773,1626.8,1626.2,3.0]
[1693862057442,4.1615,1626.8,1626.2,3.0]
[1693862057639,0.38246581,1626.5,1626.2,3.64529122]
[1693862057893,2.15119852,1626.7,1626.3,0.36452912]
[1693862059606,2.15119852,1626.7,1626.2,3.0]
[1693862060968,3.72419852,1626.7,1626.1,3.0]
[1693862061649,2.2812,1626.6,1626.1,3.0]
[1693862065780,3.8542,1626.6,1625.8,39.11629122]
[1693862065980,3.8542,1626.6,1625.8,32.023]
[1693862066154,2.2812,1626.6,1625.9,4.7753]
[1693862066348,2.2812,1626.6,1626.0,1.573]
[1693862066554,2.2812,1626.6,1626.1,0.48]
[1693862068579,0.38301585,1626.5,1626.1,0.48]
[1693862068887,0.38301585,1626.5,1626.2,3.06701426]
[1693862069203,0.38301585,1626.5,1626.2,4.03668369]
[1693862069354,0.38301585,1626.5,1626.2,3.06701426]
[1693862073894,0.38301585,1626.5,1626.3,6.14892]
[1693862074049,0.38301585,1626.5,1626.3,9.21593426]
[1693862097625,0.38301585,1626.5,1626.4,0.64529122]
[1693862097953,0.38301585,1626.5,1626.4,1.61322746]
[1693862100251,0.38301585,1626.5,1626.4,1.61311899]
[1693862100726,0.38301585,1626.5,1626.4,0.64518275]
[1693862100933,0.80673744,1626.5,1626.4,0.64518275]
[1693862102565,2.37973744,1626.5,1626.4,0.64518275]
[1693862103565,0.38301585,1626.5,1626.4,0.64518275]
[1693862105381,0.38301585,1626.5,1626.4,3.71219701]
[1693862105581,0.38301585,1626.5,1626.4,7.83759592]
[1693862105963,2.15119852,1626.7,1626.4,7.83759592]
[1693862106174,2.15119852,1626.7,1626.6,0.64543501]
[1693862106372,2.15119852,1626.7,1626.6,3.71244927]
[1693862106558,2.15119852,1626.7,1626.6,5.14866197]
[1693862106756,2.15119852,1626.7,1626.6,4.50322696]
[1693862106951,2.15119852,1626.7,1626.6,10.70169127]
[1693862107375,2.15119852,1626.7,1626.6,11.99227293]
[1693862107700,2.0964,1627.1,1626.6,15.47227293]
[1693862107865,2.15080194,1627.0,1626.8,0.64511309]
[1693862108067,2.15080194,1627.0,1626.9,9.26547857]
[1693862109490,2.15080194,1627.0,1626.9,3.06701426]
[1693862109792,6.42298838,1627.3,1626.9,3.06701426]
[1693862110089,2.15053763,1627.2,1626.9,3.06701426]
[1693862111487,2.94359139,1627.2,1626.9,3.06701426]
[1693862117794,0.41458972,1627.1,1626.9,3.06701426]
[1693862120988,1.98758972,1627.1,1626.7,0.64511309]
[1693862121190,1.573,1627.0,1626.7,3.06701426]
[1693862121392,7.71931,1627.0,1626.6,0.64511309]
[1693862121595,0.771931,1626.9,1626.6,3.71212735]
[1693862121890,2.897931,1626.9,1626.6,3.71212735]
[1693862122205,5.04886512,1626.9,1626.6,3.71212735]
[1693862129302,5.04886512,1626.9,1626.6,3.06701426]
[1693862132435,0.59712997,1626.8,1626.6,3.06701426]
[1693862132838,5.04886512,1626.9,1626.6,3.06701426]
[1693862133033,0.50488651,1626.8,1626.6,3.06701426]
[1693862133336,0.40488651,1626.8,1626.6,3.06701426]
[1693862133527,5.04886512,1626.9,1626.6,3.06701426]
[1693862133721,2.897931,1626.9,1626.6,3.06701426]
[1693862133926,2.126,1626.9,1626.6,3.06701426]
[1693862134523,2.126,1626.9,1626.7,3.06701426]
[1693862145948,2.126,1626.9,1626.7,3.71212735]
[1693862146248,2.126,1626.9,1626.7,3.06701426]
[1693862147410,0.59705148,1626.8,1626.7,3.06701426]
[1693862147846,2.126,1626.9,1626.7,3.06701426]
[1693862148151,2.126,1626.9,1626.7,3.71212735]
[1693862151243,2.126,1626.9,1626.7,9.85929735]
[1693862152662,2.126,1626.9,1626.7,10.82696699]
[1693862155252,3.72366978,1627.1,1626.7,10.82696699]
[1693862155420,7.1009056,1627.1,1626.7,10.82696699]
[1693862161023,7.1009056,1627.1,1626.8,0.64511309]
[1693862161225,7.1009056,1627.1,1626.8,3.71212735]
[1693862161941,5.5279056,1627.1,1626.8,3.71212735]
[1693862162533,0.59653052,1627.0,1626.8,3.71212735]
[1693862167667,1.09653052,1627.0,1626.8,3.71212735]
[1693862168774,1.09653052,1627.0,1626.7,7.11483964]
[1693862168775,17.01343481,1627.0,1626.7,0.64511309]
[1693862169074,1.573,1626.8,1626.5,1.29058166]
[1693862169274,1.573,1626.8,1626.2,0.64558321]
[1693862169275,0.64268791,1626.6,1626.2,0.64558321]
[1693862169439,0.64268791,1626.6,1626.1,2.25895648]
[1693862169440,0.64263014,1626.4,1626.1,0.96837482]
[1693862169636,0.96403186,1626.2,1625.7,12.62517967]
[1693862169937,0.64282368,1625.8,1625.4,1.6147518]
[1693862170138,1.573,1625.6,1625.4,0.64589517]
[1693862170339,2.15265768,1625.6,1625.2,0.1]
[1693862170551,11.30422768,1625.6,1625.2,0.1]
[1693862170758,1.573,1625.4,1625.2,0.1]
[1693862170959,5.77043703,1625.5,1625.2,0.1]
[1693862171271,2.15265768,1625.6,1625.2,0.05]
[1693862171438,2.15265768,1625.6,1625.3,2.21207672]
[1693862171861,2.1599,1626.0,1625.5,1.573]
[1693862172127,2.15225679,1625.9,1625.6,3.78507672]
[1693862172263,2.15225679,1625.9,1625.6,2.21207672]
[1693862172470,2.15225679,1625.9,1625.3,30.45]
[1693862172667,10.52564,1626.3,1625.4,6.525]
[1693862172879,2.15199213,1626.1,1625.7,1.573]
[1693862173085,2.15199213,1626.1,1625.8,1.09417764]
[1693862173287,2.15199213,1626.1,1625.6,3.0]
[1693862173498,2.15199213,1626.1,1625.7,2.053]
[1693862173662,2.15199213,1626.1,1625.7,4.09417764]
[1693862173969,3.72499213,1626.1,1625.7,0.48]
[1693862174169,0.37249921,1626.0,1625.6,0.48]
[1693862174365,0.37249921,1626.0,1625.5,4.8093]
[1693862174718,0.37249921,1626.0,1625.4,30.45]
[1693862175065,15.73971347,1626.0,1625.2,0.05]
[1693862175307,0.55904049,1625.9,1625.2,0.05]
[1693862175469,6.15118,1625.8,1625.2,0.05]
[1693862175812,2.15252153,1625.7,1625.2,0.05]
[1693862175971,1.573,1625.6,1625.2,0.05]
[1693862176279,18.45475,1625.6,1625.2,0.05]
[1693862176604,5.76640887,1625.5,1625.0,0.1]
[1693862176793,3.06701426,1625.3,1625.0,0.1]
[1693862177097,1.95384615,1624.7,1624.6,0.1]
[1693862177300,17.33082041,1624.7,1624.6,0.1]
[1693862177470,29.0697415,1624.7,1624.3,0.1]
[1693862177669,15.96248072,1624.6,1624.3,0.1]
[1693862177874,15.37773426,1624.6,1624.5,0.05]
[1693862178179,1.90437646,1624.3,1624.1,0.1]
[1693862178382,21.53762426,1624.2,1624.1,0.1]
[1693862178675,21.53762426,1624.2,1623.7,0.1]
[1693862178676,18.5235735,1624.2,1623.7,0.1]
[1693862178877,27.70057426,1623.8,1623.7,0.1]
[1693862179066,6.15915,1623.6,1623.5,0.1]
[1693862179264,2.05517241,1623.7,1623.5,0.1]
[1693862179499,6.15915,1623.6,1623.5,0.1]
[1693862179665,16.2067465,1623.6,1623.2,0.0054197]
[1693862179866,8.21399241,1623.7,1623.2,0.0054197]
[1693862180065,2.05517241,1623.7,1622.7,0.84609482]
[1693862180294,2.2316,1624.1,1623.4,2.213]
[1693862180478,2.2316,1624.1,1622.8,1.46516687]
[1693862180679,2.2316,1624.1,1623.2,0.99290732]
[1693862180928,2.15450908,1624.2,1623.2,1.60708496]
[1693862181068,6.15452,1624.9,1623.3,0.61417764]
[1693862181268,2.213,1625.0,1623.5,30.45]
[1693862181269,2.15397871,1624.6,1623.5,30.45]
[1693862181489,2.15397871,1624.6,1623.6,8.13208496]
[1693862181689,6.15312,1625.2,1624.4,2.213]
[1693862181888,2.2245,1624.9,1624.5,1.09417764]
[1693862182208,2.2245,1624.9,1624.4,30.45]
[1693862182414,2.213,1624.7,1623.9,33.45]
[1693862182573,2.213,1624.7,1624.0,0.48]
[1693862182773,2.213,1624.5,1623.9,33.45]
[1693862182972,2.213,1624.5,1623.9,30.45]
[1693862183291,0.55322513,1624.4,1623.9,33.495]
[1693862183602,0.55322513,1624.4,1623.1,50.89787764]
[1693862183603,2.213,1624.3,1623.4,32.663]
[1693862184104,2.15411128,1624.5,1623.6,2.213]
[1693862184304,2.15411128,1624.5,1623.9,2.213]
[1693862184604,4.3576,1624.9,1624.0,2.213]
[1693862184784,0.53454697,1624.4,1624.1,2.213]
[1693862184978,2.76914162,1624.8,1624.1,2.213]
[1693862186030,2.15371362,1624.8,1624.0,5.213]
[1693862186209,4.36671362,1624.8,1624.0,3.0]
[1693862186506,2.15371362,1624.8,1624.0,5.213]
[1693862186715,2.15371362,1624.8,1624.1,2.693]
[1693862186917,8.89361042,1624.8,1623.5,0.0129534]
[1693862187119,18.46902,1624.4,1623.5,0.0129534]
[1693862187323,2.213,1624.2,1623.5,0.0129534]
[1693862187692,3.0,1624.4,1623.7,2.213]
[1693862187891,2.213,1624.6,1623.5,3.1739534]
[1693862187892,2.15418706,1624.5,1623.5,3.1739534]
[1693862188190,4.27538706,1624.5,1623.6,0.31739534]
[1693862188387,4.27538706,1624.5,1623.6,3.31739534]
[1693862188586,4.27538706,1624.5,1623.7,0.48]
[1693862189226,4.27538706,1624.5,1623.7,3.641]
[1693862189410,2.15418706,1624.5,1623.8,3.0]
[1693862189612,3.161,1624.4,1623.6,0.31739534]
[1693862189800,3.161,1624.4,1623.5,3.0129534]
[1693862190002,3.161,1624.4,1623.6,0.48]
[1693862190198,0.53271102,1624.3,1623.6,0.48]
[1693862190990,3.161,1624.2,1623.5,3.0129534]
[1693862191191,3.161,1624.0,1623.5,0.0129534]
[1693862191391,9.31873,1624.0,1623.5,0.0129534]
[1693862191623,3.161,1623.6,1623.5,0.0129534]
[1693862191921,3.161,1623.6,1623.1,30.45]
[1693862192122,3.161,1623.4,1622.9,30.60548819]
[1693862192287,3.06701426,1623.4,1622.9,0.15548819]
[1693862192492,3.161,1623.1,1622.9,0.15548819]
[1693862193424,2.15583616,1623.2,1622.9,0.15548819]
[1693862193811,3.692889,1623.3,1622.9,0.15548819]
[1693862193999,0.3692889,1623.2,1622.9,0.15548819]
[1693862194526,3.161,1623.1,1622.9,0.15548819]
[1693862194821,5.31696895,1623.1,1622.9,0.15548819]
[1693862195024,5.31696895,1623.1,1622.9,0.14253]
[1693862195328,3.06701426,1623.0,1622.9,0.14253]
[1693862195523,11.47804895,1623.1,1622.9,0.14253]
[1693862195524,5.31696895,1623.1,1622.9,0.14253]
[1693862195696,6.18559474,1623.1,1622.9,0.14253]
[1693862196427,6.16245,1622.8,1622.0,30.45]
[1693862196734,3.161,1622.8,1622.0,30.45]
[1693862196907,2.15663319,1622.6,1622.0,30.4]
[1693862197230,3.161,1622.4,1621.6,30.45]
[1693862197397,3.161,1622.2,1621.6,30.45]
[1693862198129,5.31816487,1622.2,1621.6,30.45]
[1693862199232,5.31816487,1622.2,1621.2,49.6639197]
[1693862199233,3.161,1622.0,1621.3,30.45]
[1693862199434,3.161,1622.0,1621.4,3.045]
[1693862199934,3.161,1622.0,1621.5,9.374]
[1693862200232,5.31816487,1622.2,1621.5,9.374]
[1693862200741,0.52704163,1622.1,1621.5,9.374]
[1693862200934,0.52704163,1622.1,1621.6,0.8874]
[1693862201102,0.52704163,1622.1,1621.7,3.06701426]
[1693862201303,0.52704163,1622.1,1621.8,3.0]
[1693862201534,5.31816487,1622.2,1621.8,6.06701426]
[1693862201835,5.31816487,1622.2,1621.4,3.045]
[1693862201836,3.161,1621.9,1621.4,3.045]
[1693862202037,3.161,1621.9,1621.5,12.44001426]
[1693862202331,3.161,1622.1,1621.6,1.24400143]
[1693862202531,5.31829783,1622.1,1621.6,1.24400143]
[1693862203199,5.31829783,1622.1,1621.6,4.24400143]
[1693862203402,3.161,1621.7,1621.1,0.1]
[1693862203819,3.161,1621.9,1621.1,0.1]
[1693862204139,3.161,1621.7,1621.1,9.475]
[1693862204508,3.161,1621.7,1621.1,0.1]
[1693862204938,0.52487421,1621.6,1621.2,0.0033437]
[1693862205138,2.68283709,1621.6,1621.2,0.0033437]
[1693862205345,2.1013,1622.0,1621.2,0.95117807]
[1693862205638,2.1013,1622.0,1621.3,3.161]
[1693862205838,2.15716487,1622.2,1621.4,9.373]
[1693862206636,2.15716487,1622.2,1621.6,3.161]
[1693862206838,2.15716487,1622.2,1621.5,6.641]
[1693862206839,3.161,1622.9,1621.8,3.161]
[1693862207039,5.3172346,1622.9,1621.9,4.41027764]
[1693862207239,2.1562346,1622.9,1621.9,4.41027764]
[1693862207539,2.1562346,1622.9,1622.0,9.369]
[1693862207840,2.1562346,1622.9,1622.1,3.9369]
[1693862208041,2.1562346,1622.9,1622.2,16.07701426]
[1693862208205,2.1562346,1622.9,1622.4,3.06701426]
[1693862208407,2.1562346,1622.9,1622.5,0.48]
[1693862208634,3.161,1623.5,1622.6,3.06701426]
[1693862208840,5.31670338,1623.3,1622.7,3.0]
[1693862209039,5.31670338,1623.3,1622.7,3.06701426]
[1693862209434,2.15570338,1623.3,1622.8,6.06701426]
[1693862210455,2.15570338,1623.3,1622.9,3.06701426]
[1693862210645,2.15570338,1623.3,1623.0,3.0]
[1693862210841,2.2376,1623.8,1623.1,3.06701426]
[1693862211024,2.15543843,1623.5,1623.1,0.60670143]
[1693862211223,0.49509915,1623.7,1623.0,33.45]
[1693862211424,2.65027156,1623.7,1623.0,36.51701426]
[1693862211837,0.49509915,1623.7,1623.1,3.06701426]
[1693862212038,0.49509915,1623.7,1623.2,3.0]
[1693862212239,2.15543786,1623.5,1623.2,3.0]
[1693862212446,0.49509915,1623.7,1623.2,3.0]
[1693862212658,3.23964148,1623.7,1623.2,3.0]
[1693862213244,3.23964148,1623.7,1623.3,3.06701426]
[1693862213733,3.23964148,1623.7,1623.2,3.0]
[1693862213974,3.23964148,1623.7,1623.2,3.06701426]
[1693862214793,2.65027156,1623.7,1623.3,3.06701426]
[1693862216534,0.49509915,1623.7,1623.3,3.06701426]
[1693862218873,0.49509915,1623.7,1623.3,9.22711426]
[1693862220865,3.65609915,1623.7,1623.1,3.0]
[1693862221184,6.72311341,1623.7,1623.0,30.45]
[1693862221356,0.36560992,1623.6,1623.0,30.45]
[1693862221896,0.36560992,1623.6,1623.1,3.06701426]
[1693862222903,0.49317621,1623.5,1623.1,3.06701426]
[1693862223195,0.49317621,1623.5,1623.0,33.45]
[1693862223561,0.89515482,1623.5,1623.0,33.45]
[1693862224062,0.89515482,1623.5,1623.1,6.16074]
[1693862224468,2.15557061,1623.4,1623.1,9.22775426]
[1693862224872,0.49317621,1623.5,1623.1,9.22775426]
[1693862225177,2.15517241,1623.7,1623.1,9.22775426]
[1693862225517,2.15517241,1623.7,1623.2,3.06701426]
[1693862225701,2.15517241,1623.7,1623.2,15.91101426]
[1693862226005,2.15517241,1623.7,1623.3,1.59110143]
[1693862226192,2.15517241,1623.7,1623.4,3.06701426]
[1693862226776,0.5548425,1623.6,1623.4,3.06701426]
[1693862226978,2.15517241,1623.7,1623.5,0.48]
[1693862227483,0.5548483,1623.6,1623.2,3.0]
[1693862227682,2.15517241,1623.7,1623.3,3.54701426]
[1693862227902,2.15517241,1623.7,1623.4,3.0]
[1693862228102,2.15517241,1623.7,1623.4,6.06701426]
[1693862228304,2.15517241,1623.7,1623.1,6.16074]
[1693862228506,2.15517241,1623.7,1623.2,3.0]
[1693862228507,3.161,1623.6,1623.2,3.0]
[1693862228812,0.3161,1623.5,1623.2,3.0]
[1693862229013,0.3161,1623.5,1623.1,3.0]
[1693862229386,5.3986,1623.8,1623.1,3.0]
[1693862229597,9.07258222,1623.8,1623.0,30.45]
[1693862229799,2.15543786,1623.5,1623.0,33.51701426]
[1693862230005,2.15543786,1623.5,1623.1,3.06701426]
[1693862231078,2.15543786,1623.5,1623.2,3.48]
[1693862231283,2.15543786,1623.5,1623.3,3.06701426]